[Event "FIDE WCCC G10 2018"]
[Site "Santiago de Compostela"]
[Date "2018.11.05"]
[Round "2"]
[White "Toth, Lili"]
[Black "Szczotka, Klara"]
[Result "0-1"]
[ECO "A80"]
[WhiteElo "2199"]
[BlackElo "1581"]
[Annotator "NA RC"]
[PlyCount "150"]
[EventDate "2018.11.04"]
[EventType "swiss"]
[EventCountry "ESP"]
[SourceTitle "playchess.com"]
[Source "ChessBase"]
[SourceQuality "1"]
[TimeControl "40/5400+30:1800+30"]

{[%evp 11,149,-38,80,26,19,0,33,0,9,-47,-54,-88,-90,-95,-105,-173,-138,-131,-127,-185,-175,-206,-264,-248,-251,-414,-294,-489,-476,-554,-493,-473,-496,-482,-512,-512,-486,-469,-488,-499,-509,-489,-512,-575,-526,-486,-535,-593,-655,-642,-698,-677,-577,-548,-569,-735,-530,-473,-546,-505,-539,-497,-530,-561,-533,-575,-621,32767,32767,32767,32767,32767,32767,32767,32767,32767,32767,32767,32767,32767,32767,32767,32767,32767,32767,-360,0,32767,-699,-656,-689,32767,-758,-797,-779,-1505,-2680,-1880,-1788,32767,32767,32767,32767,32767,32767,32767,32767,-2106,-11827,-29983,-29985,32767,-29985,-29986,32767,32767,-29990,32767,32767,-29990,-29991,-29990,-29991,-29991,-29992,32767,-29993,-29993,-29994,-29994,32767,-29995,-29996,-29996,-29997,-29997,-29998,-29998,-29999,-29999]} 1. d4 {[%emt 0:00:00]} f5 {[%emt 0:00:00]} 2. h3 {[%emt 0:00:00]} Nf6 3. g4 {[%emt 0:00:01]} d6 {[%emt 0:05:14]} 4. gxf5 {[%emt 0:02:14]} Bxf5 {[%emt 0:00:37]} 5. Nf3 {[%emt 0:01:17]} Nbd7 {[%emt 0:01:44]} 6. Nc3 {[%emt 0:01:10]} Ne4 {[%emt 0:11:50]} (6... e5 $15 {keeps the upper hand.}) 7. Nxe4 {[%emt 0:04:26]} Bxe4 {[%emt 0:00:15]} 8. Bg2 {[%emt 0:01:10]} Nf6 {[%emt 0:00:27]} 9. Rg1 {[%emt 0:06:12]} Qd7 {[%emt 0:05:26]} 10. e3 {[%emt 0:09:43]} ({White should play} 10. c4 $11) 10... g6 {[%emt 0:02:46]} 11. Bd2 {[%emt 0:14:51]} Bh6 {[%emt 0:05:22]} 12. b3 {[%emt 0:01:19]} O-O-O {[%emt 0:02:19]} 13. a4 {[%emt 0:01:10]} (13. c4 $17 {was necessary.}) 13... Kb8 {[%emt 0:06:47]} 14. c4 {[%emt 0:02:05]} Rhe8 {[%emt 0:15:00]} 15. b4 {[%emt 0:00:58]} (15. Bc3 $17 {was worth a try.}) 15... e5 {[%emt 0:01:14]} 16. Bc3 {[%emt 0:04:43]} exd4 {[%emt 0:06:43]} 17. Bxd4 {[%emt 0:00:31]} Nh5 {[%emt 0:00:42]} 18. Kf1 $2 {[%emt 0:07:11]} (18. b5) 18... Rf8 {[%emt 0:02:58]} 19. Rh1 {[%emt 0:00:46]} (19. Nd2 $142 Ng3+ 20. Ke1 Bxg2 21. Rxg2) 19... Qf5 {[%emt 0:00:59]} 20. Ke1 {[%emt 0:05:33]} Bxf3 {[%emt 0:00:54]} 21. Bxf3 {[%emt 0:00:14]} Qxf3 {[%emt 0:00:18]} 22. Qxf3 {[%emt 0:00:12]} Rxf3 {[%emt 0:00:07]} 23. Ke2 {[%emt 0:00:15]} Rdf8 {[%emt 0:00:32]} 24. Rh2 {[%emt 0:00:54]} Bg7 {[%emt 0:00:14]} 25. Bxg7 {[%emt 0:00:28]} Nxg7 {[%emt 0:00:05]} 26. a5 {[%emt 0:00:29]} Ne6 {[%emt 0:00:30]} 27. Rd1 {[%emt 0:00:50]} Kc8 {[%emt 0:00:35]} 28. h4 {[%emt 0:01:30]} Nd8 {[%emt 0:01:53]} 29. Rd5 {[%emt 0:01:02]} Nc6 {[%emt 0:00:41]} 30. Rg5 {[%emt 0:01:07]} Nxb4 {[%emt 0:01:04]} 31. h5 {[%emt 0:00:28]} gxh5 {[%emt 0:00:31]} 32. Rgxh5 {[%emt 0:00:07]} Nc6 {[%emt 0:01:37]} 33. Rxh7 {[%emt 0:00:55]} R3f7 {[%emt 0:00:25]} 34. R7h5 {[%emt 0:02:29]} Rf5 {[%emt 0:01:03]} 35. Rxf5 {[%emt 0:01:55]} Rxf5 {[%emt 0:00:06]} 36. Rh8+ {[%emt 0:00:09]} Kd7 {[%emt 0:00:20]} 37. Rh7+ {[%emt 0:00:07]} Ne7 {[%emt 0:00:04]} 38. f4 {[%emt 0:00:25]} Rxa5 {[%emt 0:00:06]} 39. e4 {[%emt 0:00:23]} Ra2+ {[%emt 0:00:04]} 40. Kd3 {[%emt 0:00:00]} Ra3+ {[%emt 0:00:00]} 41. Kd2 {[%emt 0:00:41]} Rf3 {[%emt 0:02:48]} 42. f5 {[%emt 0:00:23]} Ke8 {[%emt 0:00:35]} 43. Rh8+ {[%emt 0:00:10]} Kf7 {[%emt 0:00:12]} 44. Rh7+ {[%emt 0:00:19]} Kf8 {[%emt 0:00:25]} 45. Rh8+ {[%emt 0:00:17]} Kg7 {[%emt 0:00:39]} 46. Ra8 {[%emt 0:00:06]} a6 {[%emt 0:00:07]} 47. Rb8 {[%emt 0:00:08]} Rf2+ {[%emt 0:00:38]} 48. Kc3 {[%emt 0:04:00] [#]} Rf3+ $2 {[%emt 0:01:03]} (48... b5 $1 $19 49. Rb7 (49. cxb5 axb5) 49... Rf3+ 50. Kd2 bxc4 51. Rxc7 Kf6 52. Rxc4 d5 53. exd5 Rxf5) 49. Kd2 {[%emt 0:00:12]} Rb3 {[%emt 0:00:22]} 50. Kc2 {[%emt 0:00:12]} Rb6 {[%emt 0:00:26]} 51. Re8 {[%emt 0:00:26]} Nc6 {[%emt 0:01:25]} 52. Kc3 {[%emt 0:00:39]} a5 53. Re6 {[%emt 0:00:19]} a4 {[%emt 0:03:02]} 54. Rg6+ {[%emt 0:00:07]} Kf7 {[%emt 0:00:01]} 55. Rg2 {[%emt 0:00:17]} Rb3+ {[%emt 0:00:14]} 56. Kc2 {[%emt 0:00:27]} Nd4+ {[%emt 0:00:10]} 57. Kc1 {[%emt 0:00:38]} Rc3+ {[%emt 0:00:26]} 58. Kb2 {[%emt 0:00:48]} Rxc4 {[%emt 0:00:33]} 59. Ka3 {[%emt 0:00:58]} b5 {[%emt 0:00:31]} 60. Rb2 {[%emt 0:02:47]} c5 {[%emt 0:00:59]} 61. Rd2 {[%emt 0:02:49]} Rc3+ {[%emt 0:00:48]} 62. Kb2 {[%emt 0:00:54]} b4 {[%emt 0:00:07]} 63. Kb1 {[%emt 0:01:04]} a3 {[%emt 0:00:14]} 64. Ra2 {[%emt 0:00:39]} Nb3 {[%emt 0:00:18]} 65. Rc2 {[%emt 0:00:45]} Rxc2 {[%emt 0:00:07]} 66. Kxc2 {[%emt 0:00:06]} a2 {[%emt 0:00:50]} 67. Kxb3 {[%emt 0:00:07]} a1=Q {[%emt 0:00:07]} 68. Kc4 {[%emt 0:00:23]} Qa6+ {[%emt 0:00:14]} 69. Kb3 {[%emt 0:00:28]} Qd3+ {[%emt 0:00:12]} 70. Ka4 {[%emt 0:00:23]} b3 {[%emt 0:00:40]} 71. Ka5 {[%emt 0:01:02]} b2 {[%emt 0:00:22]} 72. Kb6 {[%emt 0:00:08]} b1=Q+ {[%emt 0:00:19]} 73. Kc7 {[%emt 0:00:17]} Qa6 {[%emt 0:00:29]} 74. Kd8 {[%emt 0:00:33]} Qb8+ {[%emt 0:00:08]} 75. Kd7 {[%emt 0:00:06]} Qac8# {[%emt 0:00:17]} 0-1

[Event "FIDE WCCC G10 2018"]
[Site "Santiago de Compostela"]
[Date "2018.11.05"]
[Round "2"]
[White "Edithso, Samantha"]
[Black "Unurzul, Davaakhuu"]
[Result "1-0"]
[ECO "C54"]
[WhiteElo "1879"]
[BlackElo "1342"]
[Annotator "NA RC"]
[PlyCount "65"]
[EventDate "2018.11.04"]
[EventType "swiss"]
[EventCountry "ESP"]
[SourceTitle "playchess.com"]
[Source "ChessBase"]
[SourceQuality "1"]
[TimeControl "40/5400+30:1800+30"]

{[%evp 8,64,25,-50,20,32767,19,32767,29,32767,24,33,41,20,38,-2,53,35,45,0,13,0,133,120,130,81,148,139,134,128,152,120,162,78,145,50,68,30,198,185,332,270,325,187,820,932,793,778,2151,29985,29995,29994,29995,29994,29994,29995,29997,29998,29999]} 1. e4 {[%emt 0:00:00]} e5 {[%emt 0:00:00]} 2. Nf3 {[%emt 0:00:00]} Nc6 {[%emt 0:00:00]} 3. Bc4 {[%emt 0:00:00]} Bc5 {[%emt 0:00:02]} 4. c3 {[%emt 0:00:00]} Nf6 {[%emt 0:00:17]} 5. O-O {[%emt 0:02:16]} (5. d3 $11) 5... d6 {[%emt 0:05:09]} 6. d4 {[%emt 0:00:53]} exd4 {[%emt 0:00:22]} 7. cxd4 {[%emt 0:00:09]} Bb6 {[%emt 0:00:32]} 8. d5 {[%emt 0:01:57]} Ne5 {[%emt 0:01:50] C56: Two Knights: 4 d4 exd4 5 0-0 Nxe4} 9. Nxe5 {[%emt 0:00:26] LiveBook: 3 Games} dxe5 {[%emt 0:00:16]} 10. Bg5 {[%emt 0:00:48]} (10. Nc3 O-O 11. h3 Ne8 12. Qe2 Nd6 13. Bd3 f5 14. exf5 Bxf5 15. Be3 {0-1 (31) Souleidis,G (2393)-Vishnu,P (2482) Llucmajor 2015}) 10... h6 {[%emt 0:00:58]} 11. Bb5+ $146 {[%emt 0:00:57]} ({Predecessor:} 11. Bh4 O-O 12. Nc3 a6 13. Kh1 Qd6 14. Qe2 Bg4 15. f3 Bh5 16. Rad1 {0-1 (33) Hlavnicka,J (1949)-Kapoun,M (1835) Cesky Krumlov 2008}) 11... Bd7 {[%emt 0:00:49]} 12. Bxf6 {[%emt 0:01:16]} gxf6 {[%emt 0:00:31]} 13. Bxd7+ {[%emt 0:00:23]} Qxd7 {[%emt 0:00:16]} 14. Qf3 {[%emt 0:00:10]} Qe7 {[%emt 0:05:55]} (14... Rg8 $11) 15. Nc3 {[%emt 0:00:14]} O-O-O {[%emt 0:00:40]} 16. a4 {[%emt 0:02:53]} Kb8 {[%emt 0:03:35]} 17. a5 {[%emt 0:00:19]} Bd4 {[%emt 0:00:08]} 18. a6 {[%emt 0:00:50]} b6 {[%emt 0:07:05]} 19. Rfc1 {[%emt 0:03:11]} Rc8 {[%emt 0:07:41]} 20. Kh1 {[%emt 0:01:18]} (20. Rc2 $18 {and White stays clearly on top.}) 20... Rhg8 {[%emt 0:00:43]} (20... Rhd8 $142) 21. Qe2 {[%emt 0:02:25]} ({Lieber} 21. Rc2 $16) 21... Qd7 {[%emt 0:03:04]} 22. Na2 {[%emt 0:02:16]} Rg5 $2 {[%emt 0:03:22]} (22... f5 $14) 23. Nb4 {[%emt 0:00:33]} Rcg8 {[%emt 0:00:24]} (23... f5 $142) 24. g3 {[%emt 0:01:43]} h5 {[%emt 0:00:38]} 25. Rc4 {[%emt 0:02:00]} (25. Nc6+ $142 Ka8 26. Qb5 Bxf2 {[#]} 27. Nxa7 $1 {[%mdl 512]}) 25... Bc5 $2 {[%emt 0:06:29] [#]} (25... h4 26. Nc6+ (26. gxh4 Rg2 $19) 26... Ka8) 26. Rxc5 $1 {[%emt 0:01:16]} f5 {[%emt 0:32:02]} 27. Qb5 {[%emt 0:01:08]} Qd6 {[%emt 0:01:11]} 28. Rc6 {[%emt 0:00:25]} Qf8 {[%emt 0:00:17]} 29. d6 {[%emt 0:00:46]} R8g6 {[%emt 0:02:15]} 30. dxc7+ {[%emt 0:00:25]} Kc8 {[%emt 0:00:14]} 31. Rd1 {[%emt 0:00:11]} Rxc6 {[%emt 0:04:58]} 32. Qxc6 {[%emt 0:00:45]} Qxb4 {[%emt 0:02:46]} 33. Qb7# {[%emt 0:00:14]} 1-0

[Event "FIDE WCCC G10 2018"]
[Site "Santiago de Compostela"]
[Date "2018.11.05"]
[Round "2"]
[White "Shvedova, Alexandra"]
[Black "Zavivaeva, Evelina"]
[Result "1-0"]
[ECO "C53"]
[WhiteElo "1782"]
[BlackElo "1323"]
[Annotator "NA RC"]
[PlyCount "53"]
[EventDate "2018.11.04"]
[EventType "swiss"]
[EventCountry "ESP"]
[SourceTitle "playchess.com"]
[Source "ChessBase"]
[SourceQuality "1"]
[TimeControl "40/5400+30:1800+30"]

1. e4 {[%emt 0:00:00]} e5 {[%emt 0:00:00]} 2. Nf3 {[%emt 0:00:00]} Nc6 {[%emt 0:00:00]} 3. Bc4 {[%emt 0:00:00]} Bc5 {[%emt 0:00:00]} 4. c3 {[%emt 0:00:00]} Qe7 {[%emt 0:00:20]} 5. d4 {[%emt 0:00:49]} Bb6 {[%emt 0:00:16]} 6. d5 {[%emt 0:00:38]} Nb8 {[%emt 0:01:52]} 7. a4 {[%emt 0:00:58]} a5 {[%emt 0:02:27]} 8. Be3 {[%emt 0:01:55]} Bxe3 {[%emt 0:02:50]} 9. fxe3 {[%emt 0:00:03]} Nf6 {[%emt 0:03:18]} 10. Nbd2 {[%emt 0:00:09]} d6 {[%emt 0:02:21]} 11. O-O {[%emt 0:00:56]} Bg4 {[%emt 0:05:14]} 12. Qe1 {[%emt 0:06:51]} h6 {[%emt 0:02:34]} 13. h3 {[%emt 0:04:54]} Bh5 {[%emt 0:04:30]} 14. Nh4 {[%emt 0:00:46]} g5 {[%emt 0:08:21]} 15. Nf5 {[%emt 0:00:22]} Qf8 {[%emt 0:04:39]} 16. Ng3 {[%emt 0:02:50]} Qe7 {[%emt 0:16:13]} 17. Qf2 {[%emt 0:00:54]} Ng4 {[%emt 0:17:01]} 18. hxg4 {[%emt 0:00:24]} Bxg4 {[%emt 0:00:04]} 19. Be2 {[%emt 0:03:21]} Bxe2 {[%emt 0:05:10]} 20. Qxe2 {[%emt 0:00:10]} Nd7 {[%emt 0:00:26]} 21. Nf5 {[%emt 0:01:47]} Qf8 {[%emt 0:07:26]} 22. Qb5 {[%emt 0:02:38]} b6 {[%emt 0:01:44]} 23. Nc4 {[%emt 0:03:00]} h5 {[%emt 0:11:04]} 24. Qc6 {[%emt 0:00:21]} Rd8 {[%emt 0:03:39]} 25. Qxc7 {[%emt 0:01:30]} Qg8 {[%emt 0:00:30]} 26. Ncxd6+ {[%emt 0:00:11]} Kf8 {[%emt 0:00:17]} 27. Qxd8# {[%emt 0:00:05] Nb8} 1-0

[Event "FIDE WCCC G10 2018"]
[Site "Santiago de Compostela"]
[Date "2018.11.05"]
[Round "2"]
[White "Khamdamova, Afruza"]
[Black "Abdinova, Narmin"]
[Result "1/2-1/2"]
[ECO "C76"]
[WhiteElo "1691"]
[BlackElo "1320"]
[Annotator "NA RC"]
[PlyCount "99"]
[EventDate "2018.11.04"]
[EventType "swiss"]
[EventCountry "ESP"]
[SourceTitle "playchess.com"]
[Source "ChessBase"]
[SourceQuality "1"]
[TimeControl "40/5400+30:1800+30"]

1. e4 {[%emt 0:00:00]} e5 {[%emt 0:00:00]} 2. Nf3 {[%emt 0:00:00]} Nc6 {[%emt 0:00:00]} 3. Bb5 {[%emt 0:00:00]} a6 {[%emt 0:00:00]} 4. Ba4 {[%emt 0:00:00]} d6 {[%emt 0:00:00]} 5. c3 {[%emt 0:00:00]} Bd7 {[%emt 0:00:00]} 6. d4 {[%emt 0:00:10]} g6 7. O-O {[%emt 0:12:15]} b5 {[%emt 0:01:47]} 8. Bb3 {[%emt 0:00:17]} Bg7 {[%emt 0:00:09]} 9. dxe5 {[%emt 0:10:51]} dxe5 {[%emt 0:02:14]} 10. Qd5 {[%emt 0:00:11]} Qe7 {[%emt 0:01:26]} 11. Ng5 {[%emt 0:00:44]} Nh6 {[%emt 0:01:00]} 12. Be3 {[%emt 0:02:43]} Qd6 {[%emt 0:11:10]} 13. f4 {[%emt 0:05:35]} Qxd5 {[%emt 0:02:42]} 14. Bxd5 {[%emt 0:00:10]} exf4 {[%emt 0:08:39]} 15. Rxf4 {[%emt 0:00:42]} f6 {[%emt 0:03:19]} 16. Ne6 {[%emt 0:00:09]} Bxe6 {[%emt 0:00:28]} 17. Bxc6+ {[%emt 0:00:06]} Kf7 {[%emt 0:00:04]} 18. Bxa8 {[%emt 0:00:04]} Rxa8 {[%emt 0:00:21]} 19. Nd2 {[%emt 0:00:22]} Ng4 {[%emt 0:00:25]} 20. Rf3 {[%emt 0:00:19]} Nxe3 {[%emt 0:02:00]} 21. Rxe3 {[%emt 0:00:06]} Rd8 {[%emt 0:00:33]} 22. Nf3 {[%emt 0:00:19]} Bh6 {[%emt 0:00:41]} 23. Ree1 {[%emt 0:00:16]} Bg4 {[%emt 0:01:35]} 24. Kf2 {[%emt 0:03:40]} Bxf3 {[%emt 0:01:32]} 25. Kxf3 {[%emt 0:01:22]} Rd3+ {[%emt 0:00:17]} 26. Kf2 {[%emt 0:00:07]} Ke6 {[%emt 0:01:09]} 27. a4 {[%emt 0:01:19]} b4 {[%emt 0:00:56]} 28. cxb4 {[%emt 0:02:13]} Rb3 {[%emt 0:00:10]} 29. Re2 {[%emt 0:01:24]} Rxb4 {[%emt 0:00:12]} 30. Rc2 {[%emt 0:01:28]} Ke5 {[%emt 0:03:43]} 31. Rxc7 {[%emt 0:05:57]} Rxb2+ {[%emt 0:00:05]} 32. Kf3 {[%emt 0:00:04]} Rb3+ {[%emt 0:00:15]} 33. Ke2 {[%emt 0:00:07]} Rb2+ {[%emt 0:01:45]} 34. Kf1 {[%emt 0:05:25]} Be3 {[%emt 0:01:50]} 35. Ra3 {[%emt 0:10:09]} Kf4 {[%emt 0:02:20]} 36. Rc6 {[%emt 0:02:21]} Bd4 {[%emt 0:08:27]} 37. Rg3 {[%emt 0:07:14]} a5 {[%emt 0:03:47]} 38. Ra6 {[%emt 0:00:50]} Kxe4 {[%emt 0:01:59]} 39. Rxa5 {[%emt 0:00:16]} f5 {[%emt 0:03:22]} 40. Ra8 {[%emt 0:00:00]} Be5 {[%emt 0:00:00]} 41. Re8 {[%emt 0:20:43]} Ra2 {[%emt 0:06:05]} 42. Rb3 {[%emt 0:01:04]} Rxa4 {[%emt 0:02:03]} 43. Rb5 {[%emt 0:00:20]} Ra1+ {[%emt 0:00:11]} 44. Ke2 {[%emt 0:00:37]} Ra2+ {[%emt 0:00:16]} 45. Ke1 {[%emt 0:00:17]} Ra1+ {[%emt 0:02:52]} 46. Kd2 {[%emt 0:01:23]} Ra2+ {[%emt 0:00:44]} 47. Kc1 {[%emt 0:00:14]} Ra1+ {[%emt 0:01:37]} 48. Kc2 {[%emt 0:00:07]} Ra2+ {[%emt 0:00:35]} 49. Kb3 Rb2+ 50. Kc4 1/2-1/2

[Event "FIDE WCCC G10 2018"]
[Site "Santiago de Compostela"]
[Date "2018.11.05"]
[Round "2"]
[White "Zhou, Yafei"]
[Black "Bellahcene, Jenna"]
[Result "1-0"]
[ECO "D53"]
[WhiteElo "1648"]
[BlackElo "1311"]
[Annotator "NA RC"]
[PlyCount "141"]
[EventDate "2018.11.04"]
[EventType "swiss"]
[EventCountry "ESP"]
[SourceTitle "playchess.com"]
[Source "ChessBase"]
[SourceQuality "1"]
[TimeControl "40/5400+30:1800+30"]

1. d4 {[%emt 0:00:00]} d5 {[%emt 0:00:00]} 2. c4 {[%emt 0:00:00]} e6 {[%emt 0:00:01]} 3. Nc3 {[%emt 0:00:00]} Nf6 {[%emt 0:00:07]} 4. Bg5 {[%emt 0:00:00]} Be7 {[%emt 0:00:13]} 5. e3 {[%emt 0:00:00]} c6 {[%emt 0:00:14]} 6. Nf3 {[%emt 0:00:00]} O-O {[%emt 0:00:35]} 7. Qc2 {[%emt 0:00:46]} Nbd7 {[%emt 0:00:15]} 8. Bd3 {[%emt 0:00:36]} dxc4 {[%emt 0:00:29]} 9. Bxc4 {[%emt 0:00:07]} b5 {[%emt 0:00:19]} 10. Bd3 {[%emt 0:00:05]} Bb7 {[%emt 0:00:19]} 11. O-O {[%emt 0:00:17]} a6 {[%emt 0:00:36]} 12. Bxf6 {[%emt 0:05:29]} Nxf6 {[%emt 0:01:23]} 13. Ne4 {[%emt 0:00:35]} h6 {[%emt 0:24:14]} 14. Ne5 {[%emt 0:00:23]} Rc8 {[%emt 0:03:29]} 15. Nc5 {[%emt 0:00:34]} Qc7 {[%emt 0:03:58]} 16. Rac1 {[%emt 0:01:11]} Bxc5 {[%emt 0:04:12]} 17. Qxc5 {[%emt 0:00:11]} Rfd8 {[%emt 0:02:19]} 18. b4 {[%emt 0:03:24]} Qd6 {[%emt 0:04:51]} 19. Bb1 {[%emt 0:04:38]} Nd5 {[%emt 0:08:16]} 20. a3 {[%emt 0:01:26]} Qxc5 {[%emt 0:00:28]} 21. Rxc5 {[%emt 0:00:20]} Nf6 {[%emt 0:00:47]} 22. Rfc1 {[%emt 0:00:43]} Rd5 {[%emt 0:01:24]} 23. R5c3 {[%emt 0:01:47]} Rd6 {[%emt 0:00:59]} 24. Kf1 {[%emt 0:02:05]} Kf8 {[%emt 0:00:42]} 25. Nd3 {[%emt 0:04:53]} Nd7 {[%emt 0:04:01]} 26. Ke2 {[%emt 0:01:20]} f6 {[%emt 0:01:08]} 27. Nc5 {[%emt 0:01:48]} Nxc5 {[%emt 0:01:23]} 28. Rxc5 {[%emt 0:00:07]} Rd5 {[%emt 0:01:19]} 29. R5c3 {[%emt 0:01:12]} Kf7 {[%emt 0:04:01]} 30. Be4 {[%emt 0:02:22]} Rd6 {[%emt 0:00:19]} 31. Rc5 {[%emt 0:01:26]} g5 {[%emt 0:14:47]} 32. Bb1 {[%emt 0:01:39]} Rd5 {[%emt 0:00:17]} 33. R5c3 {[%emt 0:02:38]} Rd6 {[%emt 0:01:36]} 34. Ba2 {[%emt 0:00:29]} Ke7 {[%emt 0:00:49]} 35. Rd3 {[%emt 0:01:24]} e5 {[%emt 0:02:05]} 36. dxe5 {[%emt 0:01:16]} fxe5 {[%emt 0:00:50]} 37. Rc5 {[%emt 0:01:27]} Rxd3 {[%emt 0:02:12]} 38. Rxe5+ {[%emt 0:01:23]} Kd6 {[%emt 0:00:44]} 39. Re6+ {[%emt 0:00:05]} Kc7 {[%emt 0:00:08]} 40. Kxd3 {[%emt 0:00:00]} Rd8+ 41. Kc3 {[%emt 0:02:25]} Rd6 {[%emt 0:01:05]} 42. Rxd6 {[%emt 0:00:16]} Kxd6 {[%emt 0:00:06]} 43. Kd4 {[%emt 0:00:04]} Bc8 {[%emt 0:00:22]} 44. e4 {[%emt 0:00:24]} Bd7 {[%emt 0:05:23]} 45. e5+ {[%emt 0:01:48]} Ke7 {[%emt 0:00:37]} 46. Kc5 {[%emt 0:00:10]} h5 {[%emt 0:02:49]} 47. Kb6 {[%emt 0:00:45]} Bc8 {[%emt 0:00:30]} 48. Kxc6 {[%emt 0:00:07]} g4 {[%emt 0:00:19]} 49. e6 {[%emt 0:01:22]} Bxe6 {[%emt 0:00:49]} 50. Bxe6 {[%emt 0:00:04]} Kxe6 {[%emt 0:00:12]} 51. Kb6 {[%emt 0:00:03]} Kf5 {[%emt 0:00:04]} 52. Kxa6 {[%emt 0:00:04]} Ke4 {[%emt 0:00:06]} 53. Kxb5 {[%emt 0:00:04]} Kd3 {[%emt 0:00:13]} 54. a4 {[%emt 0:00:33]} Ke2 {[%emt 0:00:04]} 55. a5 {[%emt 0:00:05]} Kxf2 {[%emt 0:00:05]} 56. a6 {[%emt 0:00:08]} Kxg2 {[%emt 0:00:16]} 57. a7 {[%emt 0:00:04]} Kxh2 {[%emt 0:00:06]} 58. a8=Q {[%emt 0:00:07]} g3 {[%emt 0:00:27]} 59. Qh8 {[%emt 0:00:25]} g2 {[%emt 0:00:10]} 60. Qxh5+ {[%emt 0:00:03]} Kg1 {[%emt 0:00:10]} 61. Kc4 {[%emt 0:00:32]} Kf1 {[%emt 0:01:58]} 62. Qf3+ {[%emt 0:00:09]} Kg1 {[%emt 0:00:22]} 63. Kd3 {[%emt 0:00:07]} Kh1 {[%emt 0:00:07]} 64. Qh3+ {[%emt 0:00:20]} Kg1 {[%emt 0:00:08]} 65. Ke3 {[%emt 0:00:20]} Kf1 {[%emt 0:00:36]} 66. Kf3 {[%emt 0:00:13]} Ke1 {[%emt 0:00:19]} 67. Qxg2 {[%emt 0:00:07]} Kd1 {[%emt 0:00:08]} 68. Ke3 {[%emt 0:00:06]} Kc1 {[%emt 0:00:06]} 69. Kd3 {[%emt 0:00:04]} Kb1 {[%emt 0:00:07]} 70. Kc3 {[%emt 0:00:06]} Ka1 71. Qb2# 1-0

[Event "FIDE WCCC G10 2018"]
[Site "Santiago de Compostela"]
[Date "2018.11.05"]
[Round "2"]
[White "Rouda Essa, Alserkal"]
[Black "Chekhani, Anna"]
[Result "1-0"]
[ECO "B40"]
[WhiteElo "1635"]
[BlackElo "1288"]
[Annotator "NA RC"]
[PlyCount "79"]
[EventDate "2018.11.04"]
[EventType "swiss"]
[EventCountry "ESP"]
[SourceTitle "playchess.com"]
[Source "ChessBase"]
[SourceQuality "1"]
[TimeControl "40/5400+30:1800+30"]

1. e4 {[%emt 0:00:00]} c5 {[%emt 0:00:00]} 2. Nf3 {[%emt 0:00:00]} e6 {[%emt 0:00:00]} 3. c3 {[%emt 0:00:20]} d5 {[%emt 0:00:16]} 4. exd5 {[%emt 0:00:18]} Qxd5 {[%emt 0:00:08]} 5. d4 {[%emt 0:00:21]} Nf6 {[%emt 0:03:24]} 6. Na3 {[%emt 0:00:46]} Be7 {[%emt 0:04:20]} 7. Bc4 {[%emt 0:08:16]} Qd8 {[%emt 0:03:05]} 8. O-O {[%emt 0:00:50]} O-O {[%emt 0:01:23]} 9. h3 {[%emt 0:08:21]} a6 {[%emt 0:03:03]} 10. Bf4 {[%emt 0:02:53]} b5 {[%emt 0:03:34]} 11. Be2 {[%emt 0:01:22]} Bb7 {[%emt 0:04:13]} 12. Ne5 {[%emt 0:01:22]} Nc6 {[%emt 0:09:34]} 13. Nc2 {[%emt 0:07:25]} Qb6 {[%emt 0:02:53]} 14. Bf3 {[%emt 0:03:26]} Rfd8 {[%emt 0:03:25]} 15. Nxc6 {[%emt 0:01:43]} Bxc6 {[%emt 0:07:40]} 16. Qe2 {[%emt 0:02:07]} Nd5 {[%emt 0:19:42]} 17. Be3 {[%emt 0:03:10]} Rac8 {[%emt 0:03:59]} 18. Ne1 {[%emt 0:11:43]} c4 {[%emt 0:05:59]} 19. Rc1 {[%emt 0:07:59]} a5 {[%emt 0:03:16]} 20. Bd2 {[%emt 0:09:38]} Bb7 {[%emt 0:05:18]} 21. Bxd5 {[%emt 0:04:21]} Rxd5 {[%emt 0:01:53]} 22. f4 {[%emt 0:00:56]} Bf6 {[%emt 0:08:24]} 23. Nf3 {[%emt 0:01:30]} h6 {[%emt 0:03:53]} 24. Ne5 {[%emt 0:00:54]} Bxe5 {[%emt 0:01:33]} 25. fxe5 {[%emt 0:00:09]} Rd7 {[%emt 0:00:40]} 26. Qg4 {[%emt 0:00:48]} Kh8 {[%emt 0:00:20]} 27. Rce1 {[%emt 0:00:42]} Kh7 {[%emt 0:01:00]} 28. Re3 {[%emt 0:00:13]} g6 {[%emt 0:00:30]} 29. Rg3 {[%emt 0:01:41]} Qd8 {[%emt 0:00:25]} 30. Rf6 {[%emt 0:00:14]} Qg8 {[%emt 0:00:34]} 31. Qf4 {[%emt 0:05:30]} Qg7 {[%emt 0:00:13]} 32. Rg4 {[%emt 0:00:30]} g5 {[%emt 0:00:48]} 33. Qg3 {[%emt 0:00:15]} Rg8 {[%emt 0:00:30]} 34. h4 {[%emt 0:00:43]} gxh4 {[%emt 0:00:32]} 35. Qxh4 {[%emt 0:01:03]} Qxf6 {[%emt 0:00:30]} 36. exf6 {[%emt 0:00:11]} Rxg4 37. Qxg4 {[%emt 0:00:14]} Rd8 {[%emt 0:00:59]} 38. Qh5 {[%emt 0:00:06]} Kg8 {[%emt 0:00:31]} 39. Qxh6 {[%emt 0:00:09]} Rd5 {[%emt 0:00:12]} 40. Qg7# {[%emt 0:00:00]} 1-0